fUSD/lending_fUSD_20250523
["ID","MTS","AMOUNT","RATE_DAILY","PERIOD"]
[362105927,1748001050499,-420.0,0.00027397,4]
[362105928,1748001050508,-255.59431425,0.00027397,4]
[362105929,1748001050519,-420.0,0.00027397,4]
[362105930,1748001050529,-420.0,0.00027397,4]
[362105931,1748001050540,-420.0,0.00027397,4]
[362105932,1748001050550,-420.0,0.00027397,4]
[362105933,1748001050564,-420.0,0.00027397,4]
[362105934,1748001050574,-829.66,0.00027397,4]
[362105935,1748001050584,-420.0,0.00027397,4]
[362105936,1748001050594,-420.0,0.00027397,4]
[362105937,1748001050604,-420.0,0.00027397,4]
[362105938,1748001050613,-420.0,0.00027397,4]
[362105939,1748001050624,-560.23646445,0.00027397,4]
[362105940,1748001050633,-420.0,0.00027397,4]
[362105941,1748001050644,-522.23099564,0.00027397,4]
[362105942,1748001050654,-165.58054347,0.00027397,4]
[362105943,1748001050664,-420.0,0.00027397,4]
[362105944,1748001050674,-420.0,0.00027397,4]
[362105945,1748001050684,-420.0,0.00027397,4]
[362105946,1748001050694,-420.0,0.00027397,4]
[362105947,1748001050704,-420.0,0.00027397,4]
[362105948,1748001050714,-420.0,0.00027397,4]
[362105949,1748001050724,-420.0,0.00027397,4]
[362105950,1748001050735,-420.0,0.00027397,4]
[362105951,1748001050745,-420.0,0.00027397,4]
[362105952,1748001050755,-420.0,0.00027397,4]
[362105953,1748001050765,-327.05,0.00027397,4]
[362105954,1748001050774,-420.0,0.00027397,4]
[362105955,1748001050784,-420.0,0.00027397,4]
[362105956,1748001050794,-420.0,0.00027397,4]
[362105957,1748001050804,-420.0,0.00027397,4]
[362105958,1748001050818,-420.0,0.00027397,4]
[362105959,1748001050827,-420.0,0.00027397,4]
[362105960,1748001050838,-420.0,0.00027397,4]
[362105961,1748001050848,-151.0,0.00027397,7]
[362105962,1748001050858,-151.0,0.00027397,7]
[362105963,1748001050868,-151.0,0.00027397,7]
[362105964,1748001050878,-420.0,0.00027397,4]
[362105965,1748001050888,-151.0,0.00027397,7]
[362105966,1748001050899,-151.0,0.00027397,7]
[362105967,1748001050909,-449.87,0.00027397,4]
[362105968,1748001050919,-420.0,0.00027397,4]
[362105969,1748001050928,-420.0,0.00027397,4]
[362105970,1748001050938,-460.32719551,0.00027397,4]
[362105971,1748001050949,-420.0,0.00027397,4]
[362105972,1748001050959,-151.0,0.00027397,7]
[362105973,1748001050969,-153.959245,0.00027397,7]
[362105974,1748001050978,-772.87,0.00027397,2]
[362105975,1748001050988,-285.36238515,0.00027397,4]
[362105976,1748001050997,-2362.7,0.00027397,4]
[362105977,1748001051007,-420.0,0.00027397,4]
[362105978,1748001051017,-420.0,0.00027397,4]
[362105979,1748001051027,-420.0,0.00027397,4]
[362105980,1748001051037,-420.0,0.00027397,4]
[362105981,1748001051047,-420.0,0.00027397,4]
[362105982,1748001051056,-420.0,0.00027397,4]
[362105983,1748001051068,-1450.07,0.00027397,4]
[362105984,1748001051078,-420.0,0.00027397,4]
[362105985,1748001051087,-420.0,0.00027397,4]
[362105986,1748001051097,-422.30835484,0.00027397,4]
[362105987,1748001051107,-303.03640257,0.00027397,4]
[362105988,1748001051117,-1275.68,0.00027397,4]
[362105989,1748001051127,-420.0,0.00027397,4]
[362105990,1748001051136,-420.0,0.00027397,4]
[362105991,1748001051146,-420.0,0.00027397,4]
[362105992,1748001051156,-420.0,0.00027397,4]
[362105993,1748001051166,-420.0,0.00027397,4]
[362105994,1748001051175,-420.0,0.00027397,4]
[362105995,1748001051185,-420.0,0.00027397,4]
[362105996,1748001051194,-420.0,0.00027397,4]
[362105997,1748001051204,-420.0,0.00027397,4]
[362105998,1748001051213,-420.0,0.00027397,4]
[362105999,1748001051223,-430.24824608,0.00027397,4]
[362106000,1748001051233,-420.0,0.00027397,4]
[362106001,1748001051244,-420.0,0.00027397,4]
[362106002,1748001051253,-420.0,0.00027397,4]
[362106003,1748001051263,-420.0,0.00027397,4]
[362106004,1748001051273,-420.0,0.00027397,4]
[362106005,1748001051282,-420.0,0.00027397,4]
[362106006,1748001051292,-901.51,0.00027397,4]
[362106007,1748001051302,-420.0,0.00027397,4]
[362106008,1748001051317,-420.0,0.00027397,4]
[362106009,1748001051327,-646.664953,0.00027397,7]
[362106010,1748001051337,-646.664953,0.00027397,7]
[362106011,1748001051350,-646.664953,0.00027397,7]
[362106012,1748001051360,-646.664953,0.00027397,7]
[362106013,1748001051369,-646.664953,0.00027397,7]
[362106014,1748001051379,-646.664953,0.00027397,7]
[362106015,1748001051390,-3000.6,0.00027397,4]
[362106016,1748001051400,-420.0,0.00027397,4]
[362106017,1748001051410,-420.0,0.00027397,4]
[362106018,1748001051420,-420.0,0.00027397,4]
[362106019,1748001051430,-1102.25,0.00027397,4]
[362106020,1748001051440,-646.664953,0.00027397,7]
[362106021,1748001051450,-420.0,0.00027397,4]
[362106022,1748001051460,-646.664953,0.00027397,7]
[362106023,1748001051470,-428.97206248,0.00027397,4]
[362106024,1748001051480,-420.0,0.00027397,4]
[362106025,1748001051490,-420.0,0.00027397,4]
[362106026,1748001051500,-646.664953,0.00027397,7]
[362106027,1748001051511,-646.664953,0.00027397,7]
[362106028,1748001051520,-646.664953,0.00027397,7]
[362106029,1748001051531,-420.0,0.00027397,4]
[362106030,1748001051540,-646.664948,0.00027397,7]
[362106031,1748001051550,-420.0,0.00027397,4]
[362106032,1748001051563,-420.0,0.00027397,4]
[362106033,1748001051573,-420.0,0.00027397,4]
[362106034,1748001051583,-428.80434082,0.00027397,4]
[362106035,1748001051592,-420.0,0.00027397,4]
[362106036,1748001051602,-430.28908634,0.00027397,4]
[362106037,1748001051612,-420.0,0.00027397,4]
[362106038,1748001051621,-420.0,0.00027397,4]
[362106039,1748001051631,-641.63,0.00027397,4]
[362106040,1748001051641,-1000.0,0.00027397,4]
[362106041,1748001051652,-420.0,0.00027397,4]
[362106042,1748001051663,-420.0,0.00027397,4]
[362106043,1748001051673,-420.0,0.00027397,4]
[362106044,1748001051683,-420.0,0.00027397,4]
[362106045,1748001051692,-420.0,0.00027397,4]
[362106046,1748001051702,-2083.79,0.00027397,4]
[362106047,1748001051712,-420.0,0.00027397,4]
[362106048,1748001051722,-420.0,0.00027397,4]
[362106049,1748001051732,-420.0,0.00027397,4]
[362106050,1748001051742,-420.0,0.00027397,4]
[362106051,1748001051752,-423.14196155,0.00027397,4]
[362106052,1748001051762,-420.0,0.00027397,4]
[362106053,1748001051772,-270.318069,0.00027397,7]
[362106054,1748001051782,-270.318069,0.00027397,7]
[362106055,1748001051792,-270.318069,0.00027397,7]
[362106056,1748001051802,-589.73,0.00027397,4]
[362106057,1748001051814,-426.64645943,0.00027397,4]
[362106058,1748001051824,-420.0,0.00027397,4]
[362106059,1748001051834,-427.14085087,0.00027397,4]
[362106060,1748001051843,-270.318069,0.00027397,7]
[362106061,1748001051853,-420.0,0.00027397,4]
[362106062,1748001051863,-270.318069,0.00027397,7]
[362106063,1748001051873,-270.318069,0.00027397,7]
[362106064,1748001051883,-420.0,0.00027397,4]
[362106065,1748001051893,-420.0,0.00027397,4]
[362106066,1748001051903,-420.0,0.00027397,4]
[362106067,1748001051912,-420.0,0.00027397,4]
[362106068,1748001051923,-420.0,0.00027397,2]
[362106069,1748001051932,-420.0,0.00027397,4]
[362106070,1748001051942,-270.318069,0.00027397,7]
[362106071,1748001051952,-270.318069,0.00027397,7]
[362106072,1748001051961,-473.07478672,0.00027397,4]
[362106073,1748001051971,-420.0,0.00027397,4]
[362106074,1748001051981,-270.318069,0.00027397,7]
[362106075,1748001051990,-487.83555,0.00027397,4]
[362106076,1748001052000,-420.0,0.00027397,4]
[362106077,1748001052010,-481.86477589,0.00027397,4]
[362106078,1748001052020,-2552.45,0.00027397,4]
[362106079,1748001052029,-343.23454157,0.00027397,4]
[362106080,1748001052039,-427.29304641,0.00027397,4]
[362106081,1748001052049,-420.0,0.00027397,2]
[362106082,1748001052063,-420.0,0.00027397,4]
[362106083,1748001052072,-429.50055362,0.00027397,4]
[362106084,1748001052082,-420.0,0.00027397,4]
[362106085,1748001052093,-707.13,0.00027397,4]
[362106086,1748001052103,-420.0,0.00027397,4]
[362106087,1748001052113,-420.0,0.00027397,4]
[362106088,1748001052122,-420.0,0.00027397,4]
[362106089,1748001052132,-500.0,0.00027397,4]
[362106090,1748001052195,-270.318069,0.00027397,7]
[362106091,1748001052205,-270.318069,0.00027397,7]
[362106092,1748001052215,-270.318076,0.00027397,7]
[362106093,1748001052224,-420.0,0.00027397,4]
[362106094,1748001052233,-420.0,0.00027397,4]
[362106095,1748001052242,-420.0,0.00027397,4]
[362106096,1748001052252,-420.0,0.00027397,4]
[362106097,1748001052261,-420.0,0.00027397,4]
[362106098,1748001052271,-420.0,0.00027397,4]
[362106099,1748001052280,-420.0,0.00027397,4]
[362106100,1748001052289,-420.0,0.00027397,4]
[362106101,1748001052299,-420.0,0.00027397,4]
[362106102,1748001052310,-420.0,0.00027397,4]
[362106103,1748001052320,-1336.84,0.00027397,4]
[362106104,1748001052329,-420.0,0.00027397,4]
[362106105,1748001052339,-420.0,0.00027397,4]
[362106106,1748001052352,-420.0,0.00027397,4]
[362106107,1748001052362,-474.5797611,0.00027397,4]
[362106108,1748001052372,-550.60881277,0.00027397,4]
[362106109,1748001052382,-420.0,0.00027397,4]
[362106110,1748001052391,-420.0,0.00027397,4]
[362106111,1748001052400,-420.0,0.00027397,4]
[362106112,1748001052410,-430.58685148,0.00027397,4]
[362106113,1748001052419,-3965.03,0.00027397,2]
[362106114,1748001052430,-334.27,0.00027397,2]
[362106115,1748001052440,-759.63,0.00027397,2]
[362106116,1748001052450,-150.99,0.00027397,2]
[362106117,1748001052459,-6346.22,0.00027397,2]
[362106118,1748001052469,-2128.35,0.00027397,2]
[362106119,1748001052479,-260.89,0.00027397,2]
[362106120,1748001052488,-9999.99,0.00027397,2]
[362106121,1748001052498,-1224.07,0.00027397,2]
[362106122,1748001052507,-406.59,0.00027397,2]
[362106123,1748001052517,-999.99,0.00027397,2]
[362106124,1748001052527,-150.99,0.00027397,2]
[362106125,1748001052537,-799.56,0.00027397,2]
[362106126,1748001052546,-164.966718,0.00027402,7]
[362106127,1748001052556,-164.966718,0.00027402,7]
[362106128,1748001052571,-151.0,0.00027402,7]
[362106129,1748001052582,-152.005762,0.00027402,7]
[362106130,1748001052591,-179.916034,0.00027402,7]
[362106131,1748001052602,-179.916034,0.00027402,7]
[362106132,1748001052611,-372.698801,0.00027403,7]
[362106133,1748001052621,-151.0,0.00027404,7]
[362106134,1748001052630,-1669.375453,0.00027404,7]
[362106135,1748001052640,-1669.375453,0.00027404,7]
[362106136,1748001052649,-151.0,0.00027404,7]
[362106137,1748001052659,-75688.363282,0.00027412,3]
[362106138,1748001052668,-151.0,0.00027412,7]
[362106139,1748001052678,-171.84227,0.00027412,7]
[362106140,1748001052687,-171.84227,0.00027412,7]
[362106141,1748001052697,-214.555084,0.00027412,7]
[362106142,1748001052706,-214.555084,0.00027412,7]
[362106143,1748001052716,-164.966718,0.00027412,7]
[362106144,1748001052725,-164.966718,0.00027412,7]
[362106145,1748001052734,-164.966718,0.00027412,7]
[362106146,1748001052744,-164.966718,0.00027412,7]
[362106147,1748001052753,-151.0,0.00027412,7]
[362106148,1748001052762,-372.698801,0.00027412,7]
[362106149,1748001052771,-151.0,0.00027412,7]
[362106150,1748001052781,-1669.375453,0.00027412,7]
[362106151,1748001052790,-1669.375445,0.00027412,7]
[362106152,1748001052800,-563.066995,0.00027412,7]
[362106153,1748001052814,-563.066995,0.00027412,7]
[362106154,1748001052823,-179.916034,0.00027412,7]
[362106155,1748001052833,-179.916039,0.00027412,7]
[362106156,1748001052843,-151.0,0.00027413,7]
[362106157,1748001052852,-171.84227,0.00027413,7]
[362106158,1748001052861,-171.84227,0.00027413,7]
[362106159,1748001052871,-214.555084,0.00027413,7]
[362106160,1748001052881,-214.555084,0.00027413,7]
[362106161,1748001052890,-164.966718,0.00027413,7]
[362106162,1748001052899,-164.966709,0.00027413,7]
[362106163,1748001052908,-372.698804,0.00027413,7]
[362106164,1748001052917,-200.0,0.0002742,2]
[362106165,1748001052926,-200.0,0.0002742,7]
[362106166,1748001052935,-500.0,0.00027421,2]
[362106167,1748001052944,-420.0,0.00027422,4]
[362106168,1748001052953,-420.0,0.00027422,4]
[362106169,1748001052964,-420.0,0.00027422,4]
[362106170,1748001052973,-420.0,0.00027422,4]
[362106171,1748001052984,-420.0,0.00027422,4]
[362106172,1748001052994,-420.0,0.00027422,4]
[362106173,1748001053003,-420.0,0.00027422,4]
[362106174,1748001053013,-376.56,0.00027422,4]
[362106175,1748001053022,-420.0,0.00027422,4]
[362106176,1748001053031,-420.0,0.00027422,4]
[362106177,1748001053040,-210.458112,0.00027422,7]
[362106178,1748001053050,-210.458112,0.00027422,7]
[362106179,1748001053064,-420.0,0.00027422,4]
[362106180,1748001053073,-210.458112,0.00027422,7]
[362106181,1748001053083,-210.458112,0.00027422,7]
[362106182,1748001053092,-420.0,0.00027422,4]
[362106183,1748001053101,-420.0,0.00027422,4]
[362106184,1748001053110,-420.0,0.00027422,4]
[362106185,1748001053120,-420.0,0.00027422,4]
[362106186,1748001053130,-420.0,0.00027422,4]
[362106187,1748001053139,-420.0,0.00027422,4]
[362106188,1748001053148,-173.9653135,0.00027422,4]
[362106189,1748001053157,-420.0,0.00027422,4]
[362106190,1748001053167,-376.16,0.00027422,4]
[362106191,1748001053176,-420.0,0.00027422,4]
[362106192,1748001053185,-420.0,0.00027422,4]
[362106193,1748001053195,-420.0,0.00027422,4]
[362106194,1748001053204,-420.0,0.00027422,4]
[362106195,1748001053213,-420.0,0.00027422,4]
[362106196,1748001053222,-151.0,0.00027422,7]
[362106197,1748001053231,-151.0,0.00027422,7]
[362106198,1748001053240,-151.0,0.00027422,7]
[362106199,1748001053250,-151.0,0.00027422,7]
[362106200,1748001053258,-420.0,0.00027422,4]
[362106201,1748001053268,-420.0,0.00027422,4]
[362106202,1748001053277,-420.0,0.00027422,4]
[362106203,1748001053286,-420.0,0.00027422,4]
[362106204,1748001053295,-420.0,0.00027422,4]
[362106205,1748001053304,-423.58797875,0.00027422,4]
[362106206,1748001053318,-420.0,0.00027422,4]
[362106207,1748001053327,-420.0,0.00027422,4]
[362106208,1748001053337,-423.45202607,0.00027422,4]
[362106209,1748001053349,-420.0,0.00027422,4]
[362106210,1748001053359,-420.0,0.00027422,4]
[362106211,1748001053369,-276.76350304,0.00027422,4]
[362106212,1748001053379,-420.0,0.00027422,4]
[362106213,1748001053388,-420.0,0.00027422,4]
[362106214,1748001053397,-420.0,0.00027422,4]
[362106215,1748001053407,-420.0,0.00027422,4]
[362106216,1748001053417,-420.0,0.00027422,4]
[362106217,1748001053426,-420.0,0.00027422,4]
[362106218,1748001053435,-425.32386295,0.00027422,4]
[362106219,1748001053445,-522.39,0.00027422,4]
[362106220,1748001053455,-420.0,0.00027422,4]
[362106221,1748001053464,-431.17,0.00027422,4]
[362106222,1748001053473,-420.0,0.00027422,4]
[362106223,1748001053483,-420.0,0.00027422,4]
[362106224,1748001053492,-470.28,0.00027422,4]
[362106225,1748001053501,-420.0,0.00027422,4]
[362106226,1748001053510,-420.0,0.00027422,4]
[362106227,1748001053520,-483.87,0.00027422,4]
[362106228,1748001053529,-420.0,0.00027422,4]
[362106229,1748001053538,-423.60815312,0.00027422,4]
[362106230,1748001053548,-420.0,0.00027422,4]
[362106231,1748001053557,-420.0,0.00027422,4]
[362106232,1748001053572,-420.0,0.00027422,4]
[362106233,1748001053581,-420.0,0.00027422,4]
[362106234,1748001053591,-469.16,0.00027422,4]
[362106235,1748001053600,-503.27,0.00027422,4]
[362106236,1748001053610,-420.0,0.00027422,4]
[362106237,1748001053619,-414.0,0.00027422,4]
[362106238,1748001053628,-420.0,0.00027422,4]
[362106239,1748001053638,-420.0,0.00027422,4]
[362106240,1748001053647,-420.0,0.00027422,4]
[362106241,1748001053656,-171.84227,0.00027422,7]
[362106242,1748001053666,-171.84227,0.00027422,7]
[362106243,1748001053675,-171.84227,0.00027422,7]
[362106244,1748001053685,-420.0,0.00027422,4]
[362106245,1748001053694,-171.84227,0.00027422,7]
[362106246,1748001053703,-171.84227,0.00027422,7]
[362106247,1748001053712,-171.84227,0.00027422,7]
[362106248,1748001053722,-420.0,0.00027422,4]
[362106249,1748001053731,-420.0,0.00027422,2]
[362106250,1748001053741,-420.0,0.00027422,4]
[362106251,1748001053751,-420.0,0.00027422,4]
[362106252,1748001053760,-420.0,0.00027422,4]
[362106253,1748001053770,-428.36652815,0.00027422,4]
[362106254,1748001053779,-420.0,0.00027422,4]
[362106255,1748001053788,-420.0,0.00027422,4]
[362106256,1748001053797,-420.0,0.00027422,4]
[362106257,1748001053806,-420.0,0.00027422,4]
[362106258,1748001053819,-420.0,0.00027422,4]
[362106259,1748001053829,-426.69434571,0.00027422,4]
[362106260,1748001053838,-420.0,0.00027422,4]
[362106261,1748001053847,-420.0,0.00027422,4]
[362106262,1748001053856,-420.0,0.00027422,4]
[362106263,1748001053866,-420.0,0.00027422,4]
[362106264,1748001053875,-420.0,0.00027422,4]
[362106265,1748001053885,-420.0,0.00027422,4]
[362106266,1748001053894,-335.07575181,0.00027422,4]
[362106267,1748001053903,-447.66,0.00027422,4]
[362106268,1748001053912,-420.0,0.00027422,4]
[362106269,1748001053922,-420.0,0.00027422,4]
[362106270,1748001053931,-420.0,0.00027422,4]
[362106271,1748001053940,-418.8835825,0.00027422,4]
[362106272,1748001053949,-548.16413218,0.00027422,4]
[362106273,1748001053958,-420.0,0.00027422,4]
[362106274,1748001053968,-500.0,0.00027422,2]
[362106275,1748001053977,-420.0,0.00027422,4]
[362106276,1748001053987,-420.0,0.00027422,4]
[362106277,1748001053996,-420.0,0.00027422,4]
[362106278,1748001054005,-424.92142201,0.00027422,4]
[362106279,1748001054015,-427.27494512,0.00027422,4]
[362106280,1748001054024,-420.0,0.00027422,4]
[362106281,1748001054033,-420.0,0.00027422,4]
[362106282,1748001054047,-420.0,0.00027422,4]
[362106283,1748001054056,-420.0,0.00027422,4]
[362106284,1748001054069,-420.0,0.00027422,4]
[362106285,1748001054078,-420.0,0.00027422,4]
[362106286,1748001054087,-455.25,0.00027422,4]
[362106287,1748001054096,-420.0,0.00027422,4]
[362106288,1748001054107,-420.0,0.00027422,4]
[362106289,1748001054116,-424.63212422,0.00027422,4]
[362106290,1748001054125,-420.0,0.00027422,4]
[362106291,1748001054135,-420.0,0.00027422,4]
[362106292,1748001054144,-420.0,0.00027422,4]
[362106293,1748001054153,-420.0,0.00027422,4]
[362106294,1748001054162,-420.0,0.00027422,4]
[362106295,1748001054171,-420.0,0.00027422,4]
[362106296,1748001054180,-193.01394041,0.00027422,4]
[362106297,1748001054190,-214.555084,0.00027422,7]
[362106298,1748001054200,-214.555084,0.00027422,7]
[362106299,1748001054209,-214.555084,0.00027422,7]
[362106300,1748001054219,-420.0,0.00027422,4]
[362106301,1748001054228,-214.555084,0.00027422,7]
[362106302,1748001054236,-425.15570087,0.00027422,4]
[362106303,1748001054246,-174.3204827,0.00027422,4]
[362106304,1748001054256,-420.0,0.00027422,4]
[362106305,1748001054266,-420.0,0.00027422,4]
[362106306,1748001054275,-214.555084,0.00027422,7]
[362106307,1748001054285,-214.555084,0.00027422,7]
[362106308,1748001054294,-420.0,0.00027422,4]
[362106309,1748001054303,-214.555084,0.00027422,7]
[362106310,1748001054315,-214.555076,0.00027422,7]
[362106311,1748001054325,-543.23,0.00027422,4]
[362106312,1748001054335,-420.0,0.00027422,4]
[362106313,1748001054346,-420.0,0.00027422,4]
[362106314,1748001054355,-423.00030104,0.00027422,4]
[362106315,1748001054365,-420.0,0.00027422,4]
[362106316,1748001054374,-420.0,0.00027422,4]
[362106317,1748001054384,-420.0,0.00027422,4]
[362106318,1748001054393,-420.0,0.00027422,4]
[362106319,1748001054402,-420.0,0.00027422,4]
[362106320,1748001054411,-420.0,0.00027422,4]
[362106321,1748001054421,-420.0,0.00027422,4]
[362106322,1748001054431,-420.0,0.00027422,4]
[362106323,1748001054440,-435.4,0.00027422,4]
[362106324,1748001054450,-425.69594091,0.00027422,4]
[362106325,1748001054459,-420.0,0.00027422,4]
[362106326,1748001054468,-420.0,0.00027422,4]
[362106327,1748001054477,-423.20073091,0.00027422,4]
[362106328,1748001054486,-427.04916815,0.00027422,4]
[362106329,1748001054496,-420.0,0.00027422,4]
[362106330,1748001054505,-430.54620442,0.00027422,4]
[362106331,1748001054515,-420.0,0.00027422,4]
[362106332,1748001054525,-462.17,0.00027422,4]
[362106333,1748001054534,-420.0,0.00027422,4]
[362106334,1748001054543,-420.0,0.00027422,4]
[362106335,1748001054552,-420.0,0.00027422,4]
[362106336,1748001054564,-275.99198317,0.00027422,4]
[362106337,1748001054574,-420.0,0.00027422,4]
[362106338,1748001054583,-420.0,0.00027422,4]
[362106339,1748001054592,-315.36825783,0.00027422,4]
[362106340,1748001054601,-420.0,0.00027422,4]
[362106341,1748001054610,-420.0,0.00027422,4]
[362106342,1748001054620,-420.0,0.00027422,4]
[362106343,1748001054629,-225.14774825,0.00027422,4]
[362106344,1748001054639,-420.0,0.00027422,4]
[362106345,1748001054648,-239.36,0.00027422,4]
[362106346,1748001054658,-420.0,0.00027422,4]
[362106347,1748001054667,-420.0,0.00027422,4]
[362106348,1748001054677,-521.91,0.00027422,4]
[362106349,1748001054686,-420.0,0.00027422,4]
[362106350,1748001054695,-420.0,0.00027422,4]
[362106351,1748001054705,-420.0,0.00027422,4]
[362106352,1748001054714,-407.26446411,0.00027422,4]
[362106353,1748001054723,-420.0,0.00027422,4]
[362106354,1748001054733,-420.0,0.00027422,4]
[362106355,1748001054741,-420.0,0.00027422,4]
[362106356,1748001054751,-428.15729885,0.00027422,4]
[362106357,1748001054760,-422.39446766,0.00027422,4]
[362106358,1748001054771,-420.0,0.00027422,4]
[362106359,1748001054782,-420.0,0.00027422,4]
[362106360,1748001054792,-420.0,0.00027422,4]
[362106361,1748001054801,-420.0,0.00027422,4]
[362106362,1748001054814,-494.17,0.00027422,4]
[362106363,1748001054824,-318.08788759,0.00027422,4]
[362106364,1748001054834,-366.23,0.00027422,4]
[362106365,1748001054844,-426.76097321,0.00027422,4]
[362106366,1748001054853,-420.0,0.00027422,4]
[362106367,1748001054863,-420.0,0.00027422,4]
[362106368,1748001054873,-420.0,0.00027422,2]
[362106369,1748001054885,-420.0,0.00027422,4]
[362106370,1748001054895,-420.0,0.00027422,4]
[362106371,1748001054905,-420.0,0.00027422,4]
[362106372,1748001054915,-420.0,0.00027422,4]
[362106373,1748001054925,-422.15434514,0.00027422,4]
[362106374,1748001054934,-420.0,0.00027422,4]
[362106375,1748001054945,-420.0,0.00027422,4]
[362106376,1748001054955,-429.39510186,0.00027422,4]
[362106377,1748001054965,-448.43,0.00027422,4]
[362106378,1748001054976,-420.0,0.00027422,4]
[362106379,1748001054986,-420.0,0.00027422,4]
[362106380,1748001054996,-420.0,0.00027422,4]
[362106381,1748001055007,-420.0,0.00027422,4]
[362106382,1748001055017,-468.53,0.00027422,4]
[362106383,1748001055027,-420.0,0.00027422,4]
[362106384,1748001055037,-420.0,0.00027422,4]
[362106385,1748001055046,-420.0,0.00027422,4]
[362106386,1748001055056,-426.77911362,0.00027422,4]
[362106387,1748001055070,-420.0,0.00027422,4]
[362106388,1748001055080,-500.0,0.00027422,4]
[362106389,1748001055090,-420.0,0.00027422,4]
[362106390,1748001055100,-455.19,0.00027422,4]
[362106391,1748001055110,-420.0,0.00027422,4]
[362106392,1748001055120,-425.39238317,0.00027422,4]
[362106393,1748001055130,-420.0,0.00027422,4]
[362106394,1748001055140,-462.48,0.00027422,4]
[362106395,1748001055150,-430.78479013,0.00027422,4]
[362106396,1748001055160,-426.8133935,0.00027422,4]
[362106397,1748001055170,-473.56900275,0.00027422,4]
[362106398,1748001055179,-420.0,0.00027422,4]
[362106399,1748001055189,-420.0,0.00027422,4]
[362106400,1748001055199,-471.06,0.00027422,4]
[362106401,1748001055209,-423.10240257,0.00027422,4]
[362106402,1748001055219,-420.0,0.00027422,4]
[362106403,1748001055229,-420.0,0.00027422,4]
[362106404,1748001055239,-429.57073709,0.00027422,4]
[362106405,1748001055249,-459.53325356,0.00027422,4]
[362106406,1748001055259,-420.0,0.00027422,4]
[362106407,1748001055269,-420.0,0.00027422,4]
[362106408,1748001055278,-420.0,0.00027422,4]
[362106409,1748001055288,-420.0,0.00027422,4]
[362106410,1748001055298,-420.0,0.00027422,4]
[362106411,1748001055308,-420.0,0.00027422,4]
[362106412,1748001055324,-420.0,0.00027422,4]
[362106413,1748001055334,-420.0,0.00027422,4]
[362106414,1748001055344,-432.57,0.00027422,4]
[362106415,1748001055354,-427.0831086,0.00027422,4]
[362106416,1748001055364,-420.0,0.00027422,4]
[362106417,1748001055375,-405.56415605,0.00027422,4]
[362106418,1748001055385,-398.58,0.00027422,4]
[362106419,1748001055395,-420.0,0.00027422,4]
[362106420,1748001055405,-425.70255366,0.00027422,4]
[362106421,1748001055415,-420.0,0.00027422,4]
[362106422,1748001055426,-420.0,0.00027422,4]
[362106423,1748001055435,-388.94812568,0.00027422,4]
[362106424,1748001055446,-563.066995,0.00027422,7]
[362106425,1748001055456,-563.066995,0.00027422,7]
[362106426,1748001055466,-563.066995,0.00027422,7]